bitfinex-derivatives/quotes_ETHF0:USTF0_20241129
["timestamp","ask_amount","ask_price","bid_price","bid_amount"]
[1732900865108,1.0525,3586.9,3586.1,7.39713924]
[1732900865310,0.69661,3586.8,3586.1,7.67583924]
[1732900865607,0.27866,3586.7,3586.4,0.27867]
[1732900866003,0.27866,3586.7,3586.3,0.27867]
[1732900866205,0.27866,3586.6,3586.3,0.27867]
[1732900866405,1.0525,3586.9,3586.1,7.39713924]
[1732900866608,0.27867,3586.5,3586.2,0.27869]
[1732900866805,0.532,3586.9,3586.1,7.39713924]
[1732900867007,3.7168,3587.1,3586.8,2.95605766]
[1732900867008,0.509,3587.1,3586.8,2.95605766]
[1732900867215,0.509,3587.1,3586.9,0.27863]
[1732900867524,0.509,3587.1,3587.0,0.27863]
[1732900867910,0.509,3587.1,3586.9,0.27863]
[1732900868110,0.509,3587.1,3587.0,0.27863]
[1732900868317,3.2078,3587.6,3587.3,0.2786]
[1732900868516,0.27859,3587.5,3587.2,0.27861]
[1732900868719,0.27858,3587.6,3587.3,0.2786]
[1732900869011,0.27859,3587.5,3587.2,2.95605766]
[1732900869405,0.27858,3587.6,3587.2,3.23466766]
[1732900870005,0.27857,3587.7,3587.4,0.27859]
[1732900870214,0.5043,3587.8,3587.3,3.2078]
[1732900870415,0.78286,3587.8,3587.4,0.27859]
[1732900870716,0.27857,3587.7,3587.3,3.4864]
[1732900870915,0.5043,3587.8,3587.3,3.2078]
[1732900871112,0.5043,3587.8,3587.0,1.384]
[1732900871413,0.5043,3587.8,3586.8,1.384]
[1732900871414,3.90425,3587.7,3586.8,1.384]
[1732900871607,0.27863,3586.9,3586.8,1.384]
[1732900871812,0.27863,3586.9,3585.6,6.16385766]
[1732900871813,3.2078,3586.9,3585.6,6.16385766]
[1732900872014,0.27867,3586.5,3586.1,0.27869]
[1732900872215,0.27865,3586.7,3586.4,3.23472766]
[1732900872419,0.4928,3587.5,3586.4,3.23472766]
[1732900872420,3.48638,3587.6,3586.6,0.69663]
[1732900872615,0.2786,3587.4,3587.2,2.59070916]
[1732900872809,0.5181,3587.7,3586.8,2.95605766]
[1732900873015,0.27862,3587.1,3586.7,0.27864]
[1732900873216,0.27862,3587.1,3586.6,1.384]
[1732900873615,3.2078,3587.4,3586.6,1.384]
[1732900874018,3.2078,3587.4,3586.8,2.95605766]
[1732900874217,0.27862,3587.1,3586.8,2.95605766]
[1732900874622,0.27861,3587.3,3586.9,0.27863]
[1732900875016,0.27862,3587.1,3586.8,3.23469766]
[1732900875221,0.27863,3586.9,3586.8,2.95605766]
[1732900875526,0.69651,3587.3,3586.5,3.44324109]
[1732900875719,3.2078,3587.4,3586.5,3.44324109]
[1732900875924,0.27861,3587.3,3586.9,0.27863]
[1732900876119,3.4864,3587.4,3586.9,3.2078]
[1732900876421,0.27858,3587.6,3587.2,0.27861]
[1732900876725,0.27858,3587.6,3587.2,3.23466766]
[1732900876923,0.5181,3587.7,3587.2,2.95605766]
[1732900877332,0.79667,3587.7,3587.2,2.95605766]
[1732900877635,0.5043,3587.8,3587.7,0.27857]
[1732900878428,0.78402,3588.4,3588.0,0.27855]
[1732900878732,0.5055,3588.4,3587.7,3.2078]
[1732900879025,0.27854,3588.2,3587.8,0.27856]
[1732900879226,0.5055,3588.4,3587.7,3.48637]
[1732900879431,0.27855,3588.0,3587.7,3.2078]
[1732900879820,1.2018,3588.4,3587.7,3.2078]
[1732900880123,0.5445,3587.9,3587.7,3.2078]
[1732900880526,0.5445,3587.9,3587.7,0.27857]
[1732900880930,0.5445,3587.9,3587.8,0.27856]
[1732900881131,0.5055,3588.4,3587.6,6.16385766]
[1732900881324,0.01183,3588.5,3588.0,2.95605766]
[1732900881531,0.01183,3588.5,3588.4,2.95605766]
[1732900882029,0.27853,3588.3,3588.1,1.383]
[1732900882326,0.27853,3588.2,3588.1,1.383]
[1732900882531,0.01183,3588.5,3588.1,1.383]
[1732900882727,0.27853,3588.2,3588.1,1.383]
[1732900883329,0.52483,3588.5,3587.6,2.95605766]
[1732900883532,0.5406,3588.1,3587.2,2.95605766]
[1732900883727,3.2078,3587.8,3586.9,1.383]
[1732900883927,0.27861,3587.3,3586.9,1.383]
[1732900884127,0.27861,3587.3,3587.1,0.27862]
[1732900884531,0.27862,3587.1,3586.9,1.383]
[1732900884732,0.27862,3587.1,3586.8,4.61769766]
[1732900884928,0.5276,3587.6,3586.8,4.61769766]
[1732900884929,0.27861,3587.2,3586.8,4.33905766]
[1732900885136,0.27867,3586.4,3586.1,0.27869]
[1732900885333,3.2078,3587.0,3586.0,3.18959582]
[1732900885538,3.90445,3586.6,3586.0,2.95605766]
[1732900885737,3.2078,3586.6,3586.0,3.23475766]
[1732900885927,0.27869,3586.2,3586.0,2.95605766]
[1732900886127,3.2078,3586.6,3586.2,0.27869]
[1732900886331,0.5174,3587.1,3586.2,3.2078]
[1732900886332,3.2078,3587.0,3586.2,3.2078]
[1732900886533,0.27867,3586.4,3586.2,3.2078]
[1732900886733,3.2078,3587.0,3586.2,3.2078]
[1732900887033,0.27867,3586.5,3586.2,3.48649]
[1732900887238,0.6966,3586.9,3586.2,3.2078]
[1732900887441,0.27868,3586.3,3586.2,3.2078]
[1732900887737,0.27868,3586.4,3586.2,3.2078]
[1732900887932,0.27868,3586.3,3586.2,3.2078]
[1732900888136,0.5347,3586.9,3586.2,3.2078]
[1732900888341,0.27868,3586.4,3586.2,3.2078]
[1732900888528,0.27868,3586.3,3586.2,3.2078]
[1732900888840,0.27868,3586.3,3586.1,3.2078]
[1732900889636,0.5347,3586.9,3586.1,3.2078]
[1732900889837,0.27875,3585.4,3585.3,3.2078]
[1732900890037,0.5198,3586.2,3584.8,2.95605766]
[1732900890038,3.2078,3585.6,3584.8,2.95605766]
[1732900890228,0.2788,3584.8,3584.7,1.342]
[1732900890432,3.2078,3585.2,3584.7,1.342]
[1732900890740,0.5198,3585.1,3584.8,3.23484766]
[1732900891133,0.5198,3585.1,3584.8,2.95605766]
[1732900891134,0.27879,3585.0,3584.8,2.95605766]
[1732900891935,0.5198,3585.1,3584.6,1.342]
[1732900892139,0.5198,3585.1,3584.4,2.95605766]
[1732900892339,3.2078,3584.8,3584.0,3.23484371]
[1732900892635,0.27884,3584.3,3584.0,3.23484371]
[1732900892845,0.69702,3584.7,3584.0,2.95605766]
[1732900893040,3.2078,3584.8,3584.0,2.95605766]
[1732900893241,0.27885,3584.1,3584.0,2.95605766]
[1732900893644,3.2078,3584.4,3582.9,6.16385766]
[1732900893838,3.2078,3584.0,3582.9,6.67735766]
[1732900894038,0.69711,3584.3,3582.8,1.343]
[1732900894039,3.2078,3583.6,3582.8,1.343]
[1732900894235,1.0387,3583.9,3583.3,2.95605766]
[1732900894458,3.2078,3584.0,3583.5,0.27889]
[1732900894747,0.27886,3584.1,3583.7,2.95605766]
[1732900895152,0.27886,3584.1,3583.6,3.2078]
[1732900895343,0.27885,3584.2,3583.6,3.48669]
[1732900895546,0.27886,3584.1,3583.6,3.2078]
[1732900896338,3.2078,3584.6,3583.6,3.2078]
[1732900896542,3.2078,3584.6,3583.7,2.95605766]
[1732900897038,3.2078,3584.6,3583.7,3.23493766]
[1732900897238,0.27884,3584.2,3583.6,3.48669]
[1732900897543,1.0215,3584.8,3584.0,3.2078]
[1732900897739,3.65292766,3585.5,3583.5,1.343]
[1732900897740,3.2078,3585.4,3584.5,2.95605766]
[1732900897942,0.27873,3585.7,3585.1,0.27877]
[1732900898145,0.27873,3585.7,3585.2,3.2078]
[1732900898443,3.2078,3585.8,3584.9,3.45895766]
[1732900898643,0.27873,3585.7,3585.2,0.27876]
[1732900898941,0.4985,3585.9,3585.3,6.16385766]
[1732900899140,3.48649,3586.2,3585.7,0.27872]
[1732900899337,3.2078,3586.2,3585.4,1.343]
[1732900899543,0.27871,3586.0,3585.5,0.27874]
[1732900900444,0.5211,3586.5,3585.6,0.27873]
[1732900900651,0.2787,3586.1,3585.6,0.27873]
[1732900900942,0.27867,3586.4,3585.7,3.2078]
[1732900901148,0.5211,3586.5,3585.7,3.48652]
[1732900901741,0.27869,3586.2,3585.7,3.48652]
[1732900902348,0.27868,3586.3,3585.9,0.27871]
[1732900902551,0.5211,3586.5,3585.7,3.2078]
[1732900902946,0.27871,3585.9,3585.7,3.2078]
[1732900903142,0.2787,3586.1,3585.6,0.27873]
[1732900903347,0.2787,3586.0,3585.6,0.27873]
[1732900903746,0.5211,3586.5,3585.6,0.27873]
[1732900903945,0.5211,3586.5,3585.5,1.343]
[1732900904248,0.5211,3586.5,3585.7,3.48652]
[1732900904552,0.2787,3586.1,3585.7,3.48652]
[1732900905048,0.5211,3586.5,3585.7,3.2078]
[1732900905049,0.2787,3586.0,3585.7,3.2078]
[1732900905250,0.2787,3586.1,3585.7,3.48653]
[1732900905449,0.5211,3586.5,3585.7,6.16385766]
[1732900905648,0.69655,3587.2,3586.5,0.27867]
[1732900905649,14.30576508,3587.0,3586.5,0.27867]
[1732900905848,14.02713508,3587.0,3586.2,3.2078]
[1732900906048,3.2078,3587.0,3586.0,0.2787]
[1732900906352,0.27871,3585.9,3585.5,1.62174]
[1732900906650,3.2078,3586.1,3585.5,1.343]
[1732900906943,14.02713508,3586.5,3585.6,3.2078]
[1732900907145,3.2078,3586.5,3585.6,6.16385766]
[1732900907349,0.27868,3586.3,3585.8,0.27871]
[1732900907546,0.27868,3586.4,3586.0,0.2787]
[1732900907742,3.2078,3586.5,3586.0,2.95605766]
[1732900907952,3.2078,3586.5,3586.3,0.27868]
[1732900908141,3.2078,3586.5,3586.0,2.95605766]
[1732900908349,3.2078,3586.5,3586.1,0.27869]
[1732900908651,3.2078,3586.5,3586.2,0.27869]
[1732900908950,3.2078,3586.5,3585.6,6.40151647]
[1732900909446,3.2078,3586.5,3585.8,0.27872]
[1732900909447,0.27869,3586.2,3585.8,0.27872]
[1732900909657,0.2787,3586.1,3585.7,1.62172]
[1732900910042,3.2078,3586.5,3585.7,1.343]
[1732900910244,0.27871,3585.9,3585.7,1.343]
[1732900910442,0.27869,3586.2,3585.8,0.27871]
[1732900910641,0.27868,3586.4,3586.0,0.2787]
[1732900910842,0.27869,3586.2,3585.7,1.343]
[1732900911052,0.27869,3586.2,3585.8,0.27872]
[1732900911247,0.27868,3586.3,3585.9,0.27871]
[1732900911650,3.2078,3586.5,3585.6,6.16385766]
[1732900911850,3.2078,3586.5,3585.7,1.343]
[1732900912049,0.5043,3586.7,3586.0,6.16385766]
[1732900912244,0.27867,3586.5,3586.1,0.2787]
[1732900912454,0.5043,3586.7,3586.0,6.16385766]
[1732900912455,0.78295,3586.7,3586.0,6.16385766]
[1732900912650,0.78295,3586.7,3586.4,0.27867]
[1732900912953,0.27866,3586.6,3586.0,6.16385766]
[1732900913154,0.5043,3586.7,3586.0,6.16385766]
[1732900913351,0.27867,3586.5,3586.1,0.2787]
[1732900913553,0.5043,3586.7,3586.0,2.95605766]
[1732900913746,0.78295,3586.7,3586.4,0.27867]
[1732900913944,6.2018,3587.0,3586.4,2.95605766]
[1732900913945,3.2078,3587.0,3586.4,2.95605766]
[1732900914161,0.5133,3587.2,3586.8,6.16385766]
[1732900914553,3.5325,3587.7,3586.8,6.16385766]
[1732900914853,3.5325,3587.7,3587.2,0.27861]
[1732900914854,0.27858,3587.6,3587.2,0.27861]
[1732900915055,0.4899,3587.9,3587.3,2.95605766]
[1732900915256,0.4899,3587.9,3587.2,3.2078]
[1732900915257,0.4899,3587.9,3587.1,3.2078]
[1732900915456,0.27858,3587.6,3587.3,0.2786]
[1732900915657,0.27858,3587.6,3587.2,0.27861]
[1732900916057,1.1863,3587.9,3587.1,3.2078]
[1732900916359,0.2786,3587.4,3587.1,1.343]
[1732900916759,0.27858,3587.6,3587.2,0.27861]
[1732900917559,3.2078,3587.7,3587.0,3.2078]
[1732900917770,3.2078,3587.7,3587.4,0.27859]
[1732900918061,3.2078,3587.7,3587.6,0.27858]
[1732900918257,0.4899,3587.9,3587.7,0.27856]
[1732900918457,0.4899,3587.9,3587.4,3.2078]
[1732900918659,0.4899,3587.9,3587.7,0.27857]
[1732900918851,0.4899,3587.9,3587.6,0.27858]
[1732900919055,0.76846,3587.9,3587.6,0.27858]
[1732900919360,0.4899,3587.9,3587.6,0.27858]
[1732900919563,3.2078,3588.4,3587.8,0.27856]
[1732900919751,3.2078,3588.4,3587.4,3.2078]
[1732900919953,0.27855,3588.0,3587.7,0.27857]
[1732900920556,14.02713508,3588.4,3586.9,7.50685766]
[1732900920759,14.02713508,3588.4,3586.8,3.48656196]
[1732900920760,0.69648,3587.5,3586.8,3.48656196]
[1732900921070,3.2078,3587.2,3586.2,1.318]
[1732900921358,0.27867,3586.5,3586.2,1.59668]
[1732900921560,0.27868,3586.4,3586.2,1.318]
[1732900921865,0.2787,3586.1,3585.7,0.27872]
[1732900922167,3.2078,3586.3,3585.6,4.5258]
[1732900922663,0.27869,3586.2,3585.9,0.27871]
[1732900923054,0.27871,3586.0,3585.6,4.80453]
[1732900923255,0.27872,3585.8,3585.6,3.2078]
[1732900923459,0.2787,3586.1,3585.7,0.27873]
[1732900923661,0.27872,3585.9,3585.6,3.48653]
[1732900923862,0.5204,3586.4,3585.6,3.48653]
[1732900924063,0.2787,3586.1,3585.6,3.2078]
[1732900924462,11.35093508,3586.6,3586.2,0.27869]
[1732900924463,0.27867,3586.5,3586.2,0.27869]
[1732900924664,0.27869,3586.2,3586.0,3.2078]
[1732900924858,0.27869,3586.2,3585.9,0.27871]
[1732900925060,0.5316,3586.6,3585.7,4.27405766]
[1732900925365,0.27869,3586.3,3585.9,0.27871]
[1732900925560,0.27869,3586.2,3585.9,0.27871]
[1732900925873,0.69674,3586.2,3585.5,3.2078]
[1732900926171,11.51600508,3586.5,3585.6,0.27873]
[1732900926360,0.27871,3586.0,3585.6,0.27873]
[1732900926560,11.51600508,3586.5,3585.8,0.27872]
[1732900926561,0.2787,3586.1,3585.8,0.27872]
[1732900926763,0.27871,3586.0,3585.7,0.27872]
[1732900926966,10.81933508,3586.5,3585.6,2.95605766]
[1732900927264,0.5316,3586.6,3585.5,3.2078]
[1732900927466,0.97542,3586.2,3585.4,0.27873009]
[1732900927767,0.27873,3585.7,3585.4,0.55748009]
[1732900927957,0.27873,3585.7,3585.5,3.2078]
[1732900928164,0.27872,3585.8,3585.5,3.48654]
[1732900928663,0.69673,3586.2,3585.5,3.2078]
[1732900928859,0.27873,3585.7,3585.2,4.27405766]
[1732900929065,0.27872,3585.9,3585.5,0.27874]
[1732900929275,0.27872,3585.8,3585.5,0.27874]
[1732900929476,0.27874,3585.5,3585.4,3.2078]
[1732900929765,3.2078,3585.5,3584.4,2.95605766]
[1732900929961,3.2078,3585.1,3584.2,3.2078]
[1732900930165,0.27884,3584.3,3583.9,0.27886]
[1732900930567,0.27884,3584.3,3583.9,3.48666]
[1732900930771,0.27884,3584.3,3584.0,0.27886]
[1732900931070,0.2788,3584.8,3584.4,0.27882]
[1732900931467,0.27879,3584.9,3584.5,0.27882]
[1732900931664,3.7423,3585.2,3584.4,2.95605766]
[1732900931872,0.5283,3585.4,3584.8,2.95605766]
[1732900932174,3.2078,3585.9,3585.2,6.16385766]
[1732900932363,0.27876,3585.3,3585.2,6.16385766]
[1732900932571,3.2078,3585.9,3585.1,1.318]
[1732900932572,0.5175,3585.8,3585.1,1.318]
[1732900932769,0.5175,3585.8,3585.2,3.2078]
[1732900932966,0.27874,3585.6,3585.2,3.2078]
[1732900933167,0.27874,3585.5,3585.2,3.2078]
[1732900933361,0.5175,3585.8,3585.2,3.2078]
[1732900933569,0.27874,3585.6,3585.2,0.27877]
[1732900933770,0.27874,3585.6,3585.2,3.48657]
[1732900934570,0.27875,3585.5,3585.2,3.2078]
[1732900934775,0.5175,3585.8,3585.2,3.48657]
[1732900934776,0.27874,3585.6,3585.2,3.48657]
[1732900935274,0.27873,3585.7,3585.3,0.27876]
[1732900935475,0.27874,3585.6,3585.2,3.48656]
[1732900935670,0.27873,3585.7,3585.3,0.27875]
[1732900936170,0.27873,3585.7,3585.2,3.2078]
[1732900936171,0.5175,3585.8,3585.5,0.27874]
[1732900936476,3.2078,3585.9,3585.2,5.5437466]
[1732900936670,0.27875,3585.4,3585.2,5.5437466]
[1732900936974,0.69688,3585.4,3584.7,3.2078]
[1732900937167,0.69688,3585.4,3584.5,1.318]
[1732900937168,3.2078,3585.1,3584.5,1.318]
[1732900937369,0.5227,3585.0,3584.5,1.318]
[1732900938078,0.27881,3584.7,3584.4,0.27883]
[1732900938266,0.27881,3584.7,3584.3,0.27883]
[1732900938466,0.2788,3584.8,3584.5,0.27882]
[1732900938869,0.27882,3584.6,3584.3,0.27883]
[1732900939068,0.27882,3584.6,3584.3,3.48663]
[1732900939267,0.5227,3585.0,3584.8,0.27879]
[1732900939475,0.5227,3585.0,3584.5,2.95877715]
[1732900939667,0.80148,3585.0,3584.5,2.95877715]
[1732900939874,0.5227,3585.0,3584.5,2.95877715]
[1732900940069,3.2078,3585.6,3584.9,2.95877715]
[1732900940275,0.27875,3585.5,3585.2,3.2078]
[1732900940471,0.27875,3585.5,3584.9,2.95877715]
[1732900940472,0.27873,3585.7,3584.9,0.27879]
[1732900940670,0.27876,3585.3,3585.0,3.2078]
[1732900940881,0.27876,3585.4,3585.0,3.2078]
[1732900941068,0.4994,3585.8,3585.4,0.27875]
[1732900941271,0.4994,3585.8,3585.0,3.2078]
[1732900941272,0.27874,3585.6,3585.3,0.27875]
[1732900941468,0.4994,3585.8,3585.3,0.27875]
[1732900941469,0.27873,3585.7,3585.3,0.27875]
[1732900941671,0.27874,3585.6,3585.3,0.27875]
[1732900941973,0.4994,3585.8,3585.0,3.7418]
[1732900942172,3.2078,3586.0,3585.3,2.95877715]
[1732900942374,10.81933508,3586.2,3585.9,0.27871]
[1732900942579,15.02763508,3586.6,3585.5,3.2078]
[1732900942779,15.02763508,3586.6,3586.0,3.2078]
[1732900943081,4.48696,3586.6,3586.3,0.27868]
[1732900943276,4.2083,3586.6,3586.0,4.5258]
[1732900943579,3.7072,3586.6,3586.0,4.5258]
[1732900943881,0.27868,3586.4,3586.0,4.8045]
[1732900944084,0.69667,3586.5,3585.7,0.27872]
[1732900944280,0.5011,3586.3,3585.8,0.27871]
[1732900944575,0.27872,3585.8,3585.6,1.318]
[1732900944774,0.27874,3585.6,3585.3,0.27876]
[1732900944981,0.69675,3586.1,3585.3,1.59676]
[1732900945177,0.27875,3585.4,3585.3,1.318]
[1732900945382,0.27874,3585.6,3585.3,1.318]
[1732900945680,0.27875,3585.5,3585.2,0.27876]
[1732900945877,0.27876,3585.3,3585.2,1.59685135]
[1732900946685,0.27876,3585.3,3585.2,1.318]
[1732900946883,3.2078,3585.8,3584.9,3.2078]
[1732900947187,3.2078,3585.8,3584.4,1.59683]
[1732900947188,0.27882,3584.6,3584.4,1.59683]
[1732900947391,0.5108,3585.2,3584.4,1.318]
[1732900947688,0.5108,3585.2,3584.6,0.27881]
[1732900947689,0.4968,3585.0,3584.6,0.27881]
[1732900947992,0.2788,3584.8,3584.6,0.27881]
[1732900948182,0.4968,3585.0,3584.4,1.318]
[1732900948483,0.4968,3585.0,3584.6,3.2078]
[1732900948779,0.27879,3584.9,3584.6,3.2078]
[1732900948988,0.27882,3584.6,3584.4,1.318]
[1732900949588,3.7046,3585.0,3584.4,1.59682]
[1732900949589,0.27879,3584.9,3584.4,1.59682]
[1732900949776,0.2788,3584.8,3584.5,0.27882]
[1732900949980,0.2788,3584.8,3584.4,1.318]
[1732900949981,3.2078,3585.0,3584.8,0.27879]
[1732900950188,3.2078,3585.0,3584.9,0.27879]
[1732900950383,0.4968,3585.7,3585.3,0.27876]
[1732900950384,0.77553,3585.7,3585.3,0.27876]
[1732900950582,3.2078,3585.9,3585.3,1.329]
[1732900950779,0.27867,3586.4,3586.0,0.2787]
[1732900950981,3.2078,3586.5,3585.7,3.47407715]
[1732900951181,3.2078,3586.5,3586.3,0.27867]
[1732900951376,3.2078,3586.5,3586.0,3.2078]
[1732900951783,3.2078,3586.5,3585.9,3.2078]
[1732900951990,3.2078,3586.5,3585.7,0.5153]
[1732900952181,0.27871,3586.0,3585.7,0.5153]
[1732900952481,0.27872,3585.9,3585.1,4.5368]
[1732900952686,0.27871,3586.0,3585.7,0.27873]
[1732900952885,3.2078,3586.1,3585.6,3.2078]
[1732900953092,0.2787,3586.0,3585.6,3.48653]
[1732900953281,3.2078,3586.1,3585.6,3.2078]
[1732900953590,3.2078,3586.1,3585.9,0.27871]
[1732900953786,3.2078,3586.1,3585.7,2.95877715]
[1732900953983,3.2078,3586.1,3586.0,0.2787]
[1732900954291,3.2078,3586.1,3585.8,0.27871]
[1732900954497,3.2078,3586.1,3585.7,2.95877715]
[1732900954692,3.2078,3586.1,3585.6,3.2078]
[1732900954693,0.27871,3585.9,3585.6,3.2078]
[1732900954886,0.5109,3586.0,3585.2,0.27899061]
[1732900955088,0.27876,3585.3,3585.0,1.329]
[1732900955282,0.27876,3585.3,3585.0,4.81558]
[1732900955586,0.27876,3585.3,3584.6,0.534]
[1732900955587,3.2078,3585.3,3584.6,3.7418]
[1732900955787,3.2078,3585.3,3584.6,5.0708]
[1732900956087,0.27878,3585.1,3584.8,0.27879]
[1732900956387,1.23719,3585.9,3584.6,4.5368]
[1732900956388,0.69685,3585.6,3584.6,4.5368]
[1732900956589,3.2078,3585.4,3584.6,4.5368]
[1732900956784,0.27878,3585.1,3584.8,0.2788]
[1732900956992,3.2078,3585.4,3584.6,4.5368]
[1732900957180,3.2078,3585.4,3584.7,0.2788]
[1732900957181,0.27878,3585.0,3584.7,0.2788]
[1732900957381,3.2078,3585.4,3584.6,4.5368]
[1732900957583,0.27881,3584.7,3584.6,4.5368]
[1732900957789,3.2078,3585.4,3584.6,1.329]
[1732900957989,0.27879,3585.0,3584.7,0.27881]
[1732900958195,0.27881,3584.7,3584.6,1.329]
[1732900958384,0.2788,3584.8,3584.6,1.329]
[1732900958700,0.27881,3584.7,3584.5,0.27882]
[1732900958988,0.27881,3584.7,3584.6,0.27881]
[1732900959194,3.2078,3584.9,3584.3,1.329]
[1732900959588,3.2078,3584.9,3584.5,0.27882]
[1732900959893,0.27881,3584.6,3584.5,0.27882]
[1732900960593,3.2078,3584.9,3584.5,0.27882]
[1732900960899,0.27881,3584.6,3584.5,0.27882]
[1732900961192,0.27881,3584.7,3584.5,0.27882]
[1732900961390,0.2788,3584.8,3584.4,0.27882]
[1732900961595,0.27881,3584.7,3584.4,0.27882]
[1732900961795,3.2078,3584.9,3584.2,4.5368]
[1732900961994,0.27881,3584.6,3584.4,0.27883]
[1732900962196,3.2078,3584.9,3584.2,4.5368]
[1732900962392,3.2078,3584.9,3584.2,3.2078]
[1732900962593,0.5284,3584.8,3584.2,1.329]
[1732900962794,0.5284,3584.8,3584.7,0.27881]
[1732900962987,0.8072,3584.8,3584.5,0.27882]
[1732900963302,0.539,3585.2,3584.5,0.27882]
[1732900963303,0.539,3585.2,3584.5,3.2078]
[1732900963595,0.27879,3584.9,3584.5,3.2078]
[1732900963894,0.27878,3585.0,3584.7,0.2788]
[1732900964201,0.27881,3584.7,3584.4,0.27882]
[1732900964899,0.539,3585.2,3584.1,2.95877715]
[1732900965197,3.2078,3584.9,3584.4,0.27883]
[1732900965391,3.2078,3584.9,3584.3,1.60783]
[1732900965595,3.2078,3584.9,3584.0,3.48675947]
[1732900965894,3.2078,3584.9,3584.2,0.27884]
[1732900965895,0.27883,3584.4,3584.2,0.27884]
[1732900966298,0.27883,3584.4,3584.0,4.5368]
[1732900966299,0.5077,3584.8,3584.0,4.5368]
[1732900966493,0.27885,3584.2,3584.0,4.81566]
[1732900966808,0.69702,3584.7,3584.0,3.2078]
[1732900967093,0.5077,3584.8,3584.0,3.2078]
[1732900967296,3.2078,3584.5,3583.7,0.526]
[1732900967500,3.2078,3584.1,3583.6,0.27899061]
[1732900967694,0.27888,3583.7,3583.6,0.27899061]
[1732900967888,0.27888,3583.8,3583.6,0.55788061]
[1732900968196,0.5044,3584.4,3583.6,0.27899061]
[1732900968498,0.27884,3584.2,3583.6,0.27899061]
[1732900968712,0.27889,3583.7,3583.4,0.2789]
[1732900968994,3.7122,3584.4,3583.5,3.2078]
[1732900969200,3.7122,3584.4,3583.5,4.5368]
[1732900969497,0.27888,3583.7,3583.5,1.60789]
[1732900970299,0.27888,3583.7,3583.5,1.329]
[1732900970500,3.7122,3584.4,3583.5,1.329]
[1732900970797,0.27889,3583.6,3583.5,1.329]
[1732900971100,3.2078,3584.0,3583.5,1.6079]
[1732900971498,0.27889,3583.7,3583.5,1.6079]
[1732900972095,3.7122,3584.4,3583.5,4.5368]
[1732900972293,1.62352701,3585.8,3584.1,0.69713]
[1732900972294,0.5077,3584.8,3584.1,0.69713]
[1732900972509,3.2078,3585.0,3584.3,6.16657715]
[1732900972796,0.27879,3585.0,3584.4,1.329]
[1732900972999,0.27881,3584.7,3584.4,1.329]
[1732900973200,0.2788,3584.8,3584.4,1.329]
[1732900973405,0.27881,3584.7,3584.4,1.329]
[1732900973702,0.27882,3584.6,3584.4,1.329]
[1732900974001,0.97569,3585.2,3584.4,1.329]
[1732900974192,0.6969,3585.3,3584.4,1.329]
[1732900974397,0.27881,3584.7,3584.4,1.60783]
[1732900974595,0.27878,3585.0,3584.4,1.60783]
[1732900974794,0.495,3585.0,3584.4,1.329]
[1732900974998,3.2078,3585.4,3584.8,0.27879]
[1732900974999,0.27878,3585.1,3584.8,0.27879]
[1732900975193,3.2078,3585.0,3584.4,1.60783]
[1732900975397,3.2078,3585.0,3584.2,0.5435]
[1732900975398,0.27883,3584.4,3584.2,0.82234]
[1732900975599,0.27884,3584.2,3584.1,1.329]
[1732900975800,3.90485,3584.6,3583.7,0.2355751]
[1732900975997,0.27887,3583.9,3583.7,1.329]
[1732900976193,3.2078,3584.2,3583.7,1.329]
[1732900976604,0.27888,3583.8,3583.7,1.329]
[1732900978605,3.2078,3584.2,3583.7,1.329]
[1732900978909,0.27888,3583.8,3583.7,1.329]
[1732900980296,0.27888,3583.8,3583.1,0.93176573]
[1732900980504,3.2078,3584.2,3583.2,0.55794642]
[1732900980505,0.27891,3583.4,3583.2,0.55794642]
[1732900980697,0.27891,3583.4,3583.3,1.324]
[1732900980904,0.27891,3583.4,3583.2,1.88194642]
[1732900981206,0.5154,3583.7,3583.2,1.88194642]
[1732900981403,0.5154,3583.7,3583.0,6.39937669]
[1732900981708,0.69729,3583.3,3582.4,1.8474]
[1732900982103,3.2078,3583.4,3582.4,1.324]
[1732900982300,0.27895,3582.9,3582.4,1.55157438]
[1732900982605,3.2078,3583.4,3582.4,1.55157438]
[1732900982806,3.2078,3583.4,3582.5,0.27897]
[1732900982807,0.27895,3582.9,3582.5,0.27897]
[1732900983004,0.27896,3582.8,3582.5,0.27897]
[1732900983200,0.69729,3583.3,3582.4,1.55157438]
[1732900983605,0.27896,3582.8,3582.5,0.27897]
[1732900983804,0.27897,3582.7,3582.4,1.55157438]
[1732900984008,3.2078,3582.6,3581.3,3.2078]
[1732900984214,3.2078,3582.2,3581.3,0.23290801]
[1732900984510,3.2078,3582.2,3580.9,3.7315]
[1732900984704,0.27906,3581.5,3581.0,0.27909]
[1732900984905,0.27905,3581.6,3581.1,0.27908]
[1732900985309,3.2078,3581.8,3580.9,3.2078]
[1732900985509,0.69755,3582.0,3580.4,6.16657715]
[1732900985510,3.2078,3581.4,3580.4,6.16657715]
[1732900985912,0.27908,3581.2,3580.7,0.27911]
[1732900986109,3.2078,3581.4,3580.4,6.16657715]
[1732900986308,3.2078,3581.4,3580.4,6.69027715]
[1732900986710,3.2078,3581.4,3580.4,6.96940559]
[1732900986915,3.48687,3581.4,3580.8,0.2791]
[1732900987117,3.2078,3581.4,3580.4,6.96940559]
[1732900987510,3.2078,3581.4,3581.0,0.27909]
[1732900988014,3.48687,3581.4,3580.9,0.2791]
[1732900988515,3.48686,3581.4,3580.9,0.27909]
[1732900988914,3.48684,3581.4,3580.9,0.27907]